Cogmind - Beta 12 @@@ ROGUE MODE // 2023.06.24 @ 17:59:12 Player: Smie Result: Escaped! Performance ------------- Evolutions (9) 4500 Regions Visited (24) 4800 Robots Destroyed (193) 965 Value Destroyed (7686) 7686 Prototype IDs (47) 940 Alien Tech Used (0) 0 Bonus (6735) 6735 TOTAL SCORE: 25626 Bonus ------- High Alert Combat Kills 1097 Follower Combat Kills 669 Aligned with FarCom 300 Met Data Miner 300 Met Warlord at Base 500 MAIN.C Attacked Warlord 500 Warlord Defense Kills 394 Win 3000 Friendly Fire -25 Cogmind --------- Core Integrity 769/1600 Matter 19/300 Energy 100/100 System Corruption 8% Temperature Cool (2) Movement Flying (40) Location To Epsilon Eridani Parts ------- > --- POWER (2) -------- (None) > --- PROPULSION (7) --- Q-thruster > --- UTILITY (13) ----- Enhanced Optical Array Advanced Signal Interpreter Experimental Signal Interpreter Advanced Terrain Scan Processor 0b10 Decoder Chip [Looter] Targeting Computer Advanced Launcher Guidance Computer Improved Target Analyzer Hacking Suite Hacking Suite Hacking Suite Advanced System Shield Mini Drone Bay (3/3) > --- WEAPON (3) ------- (None) > --- INVENTORY (5) ---- Advanced Weight Redist. System Improved Focal Shield Peak State ------------ > --- POWER ------------ Light Quantum Reactor > --- PROPULSION ------- Q-thruster Q-thruster Q-thruster Q-thruster Q-thruster Impulse Thruster Array > --- UTILITY ---------- Advanced Weight Redist. System Advanced Signal Interpreter Experimental Signal Interpreter Advanced Terrain Scan Processor 0b10 Decoder Chip [Looter] Targeting Computer Improved Target Analyzer Experimental Reaction Control System Hacking Suite Hacking Suite Hacking Suite Advanced System Shield > --- WEAPON ----------- (None) > --- INVENTORY -------- Improved Focal Shield Mini Drone Bay Micro-nuke Launcher [Rating: 122] Favorites ----------- Power Micro Nuclear Core Engine Improved Deuterium Engine Power Core Micro Nuclear Core Reactor Light Quantum Reactor Propulsion Light Treads Treads Light Treads Leg Flexi-carbon Leg Wheel Armored Huge Wheel Flight Unit Xenon Bombardment Thruster Utility Targeting Computer Device Experimental Focal Shield Storage Large Storage Unit Processor Targeting Computer Hackware Hacking Suite Protection Improved Medium Armor Plating Weapon Coil Gun Energy Gun Heavy Laser Energy Cannon Advanced Beam Cannon Ballistic Gun Coil Gun Ballistic Cannon Enhanced Gauss Cannon Launcher Grenade Launcher Special Weapon RU-N14's Throwing Claymores v3 Impact Weapon Heavy Flail Slashing Weapon Mining Claw Piercing Weapon CR-A16's Pointy Stick Build | -11 -10 -10 -10 -9 -8 -7 -7 -7 -7 -6 -6 -6 -6 -5 -5 -5 -5 -5 -4 -4 -4 -3 -2 -1 ------- Run | Jun Mat Min Exi Min Mat Fac Low Low Dat Pro Fac Low Zio Pro Fac Upp Upp War Pro Fac Ext Res Res Acc Slots Evolved 18 | . . . . . 4 2 . . . . 2 . . . 2 . . . . 2 . 2 2 2 Power 1 | . . . . . . . . . . . . . . . . . . . . 1 . . . . Propulsion 5 | . . . . . 2 . . . . . . . . . . . . . . . . . 2 1 Utility 11 | . . . . . 2 2 . . . . 2 . . . 1 . . . . 1 . 2 . 1 Weapon 1 | . . . . . . . . . . . . . . . 1 . . . . . . . . . Parts Attached 292 | 7 18 3 2 . 46 9 7 6 1 5 26 1 . . 35 4 6 16 12 21 21 16 7 23 Power 20 | 1 2 . 1 . 3 . . 1 . . 1 . . . 2 . . 1 1 3 . 2 1 1 Engine 7 | 1 2 . 1 . 2 . . 1 . . . . . . . . . . . . . . . . Core 8 | . . . . . 1 . . . . . 1 . . . 2 . . 1 1 2 . . . . Reactor 5 | . . . . . . . . . . . . . . . . . . . . 1 . 2 1 1 Propulsion 76 | 2 6 1 . . 5 2 . 2 . . 6 . . . 9 3 2 3 4 6 9 6 1 9 Treads 15 | . 4 1 . . 4 . . . . . 4 . . . 1 . 1 . . . . . . . Leg 34 | . 2 . . . . . . . . . 1 . . . 6 3 1 3 4 6 8 . . . Wheel 12 | 2 . . . . . 2 . 2 . . 1 . . . 2 . . . . . 1 2 . . Hover . | . . . . . . . . . . . . . . . . . . . . . . . . . Flight 15 | . . . . . 1 . . . . . . . . . . . . . . . . 4 1 9 Utility 67 | 1 2 1 . . 2 3 3 . . 1 10 . . . 6 1 2 4 1 5 4 5 5 11 Device 17 | . 1 . . . . . . . . . . . . . 1 . . 2 . . 1 . 4 8 Storage 3 | 1 1 . . . . . . . . . . . . . . . . 1 . . . . . . Processor 19 | . . . . . 2 2 1 . . . 4 . . . 1 1 1 1 . 1 1 1 . 3 Hackware 5 | . . . . . . . . . . . . . . . . . 1 . . . . 3 1 . Protection 23 | . . 1 . . . 1 2 . . 1 6 . . . 4 . . . 1 4 2 1 . . Artifact . | . . . . . . . . . . . . . . . . . . . . . . . . . Weapon 129 | 3 8 1 1 . 36 4 4 3 1 4 9 1 . . 18 . 2 8 6 7 8 3 . 2 Energy Gun 1 | . . . . . . . . . . . . . . . . . . . . . . 1 . . Energy Cannon 1 | . . . . . 1 . . . . . . . . . . . . . . . . . . . Ballistic Gun 75 | 3 6 1 1 . 22 2 4 1 . 3 6 1 . . 11 . . 5 3 3 3 . . . Ballistic Cannon 1 | . . . . . . . . . . . . . . . . . . . . 1 . . . . Launcher 16 | . 1 . . . 7 2 . 1 1 1 1 . . . . . . . . . . . . 2 Special Weapon 17 | . . . . . 3 . . . . . . . . . 4 . 1 2 2 . 3 2 . . Impact Weapon 5 | . . . . . 2 . . 1 . . 2 . . . . . . . . . . . . . Slashing Weapon 2 | . 1 . . . 1 . . . . . . . . . . . . . . . . . . . Piercing Weapon 11 | . . . . . . . . . . . . . . . 3 . 1 1 1 3 2 . . . Special Melee Weapon . | . . . . . . . . . . . . . . . . . . . . . . . . . Unidentified Prototypes 14 | . . . . . 2 . . . . . . . . . 1 . . 4 . 1 1 2 2 1 Corrupted Parts 2 | . . . . . . . . . . . . . . . . . . . . 2 . . . . System Corruption 11 | . . . . . . . . . . . . . . . . . . . . 11 . . . . Parts Lost 67 | . . . . . . . 4 3 . 1 2 . . . 16 . 2 1 . 2 16 3 . 17 Power 4 | . . . . . . . 1 . . . . . . . 1 . . . . . . . . 2 Propulsion 27 | . . . . . . . . 2 . . . . . . 5 . 1 . . 1 6 . . 12 Utility 22 | . . . . . . . 3 . . . 1 . . . 6 . 1 1 . 1 5 2 . 2 Weapon 14 | . . . . . . . . 1 . 1 1 . . . 4 . . . . . 5 1 . 1 Highest Loss Streak 14 | . . . . . . . 4 3 . 1 2 . . . 8 . 2 1 . 2 14 2 . 7 To Critical Strikes 1 | . . . . . . . . . . . . . . . . . . . . . 1 . . . Average Slot Usage (%) 88 | . 96 100 100 100 72 98 78 75 76 82 91 100 100 100 88 92 93 95 100 92 91 47 68 65 Engine 3 | . 11 14 14 14 7 7 4 3 7 7 2 . . . . . . . . . . . . . Core 2 | . . . . . 1 . . . . . 3 6 6 6 4 5 5 5 5 4 4 . . . Treads 9 | . 22 28 28 28 1 26 . . . . 10 26 26 26 8 4 4 1 . . . . . . Leg 5 | . 1 . . . . . . . . . . . . . 10 8 17 20 23 20 20 . . . Wheel 2 | . 3 . . . . 1 15 14 15 15 7 . . . 1 9 . . . . . 7 . . Flight 1 | . . . . . 8 . . . . . . . . . . . . . . . . 1 19 14 Device 3 | . 13 5 . . . . . . . . . . . . 1 5 . 3 11 6 7 . 4 5 Storage 6 | . 14 14 14 14 9 7 7 7 7 7 6 6 6 6 5 5 5 6 5 5 4 . . . Processor 24 | . . . . . 17 28 28 30 30 30 38 40 40 40 31 21 26 29 29 28 30 19 21 25 Hackware 1 | . . . . . . . . . . . . . . . . . 2 3 . . . 8 16 16 Protection 6 | . . 8 14 14 9 9 5 7 7 7 7 6 6 6 6 11 11 3 4 9 6 2 . . Ballistic Gun 12 | . 27 9 14 14 16 14 9 10 7 10 12 13 13 13 13 11 11 13 11 9 8 . . . Launcher 1 | . . 14 14 14 1 . 4 . . 2 . . . . . . . . . . . . . . Naked Turns . | . . . . . . . . . . . . . . . . . . . . . . . . . Heaviest Build 76 | 14 29 29 33 33 37 41 41 36 42 46 48 43 43 43 66 57 50 48 69 72 76 57 30 30 Greatest Support 112 | 26 40 40 40 40 112 112 56 56 56 56 80 80 80 80 80 65 70 70 70 70 90 56 31 65 Greatest Overweight (x) 17 | . 1 . . . 1 . 1 1 . . 1 . . . 17 2 . . 1 1 2 1 . . Average Overweight (x) . | . . . . . . . . . . . . . . . . 1 . . . . . . . . Largest Inventory Capacity 15 | 8 15 15 15 15 15 15 15 15 15 15 15 15 15 15 15 15 15 15 15 15 15 5 5 5 Average Capacity 13 | 7 13 15 15 15 15 15 15 15 15 15 15 15 15 15 15 15 15 15 15 15 14 5 5 5 Most Carried 15 | 7 15 15 15 15 15 15 15 12 10 13 15 15 15 15 15 15 15 15 15 15 15 5 5 5 Average Carried 12 | 3 10 14 14 15 14 14 14 10 9 11 14 15 14 15 13 14 14 14 14 14 14 4 3 4 Final Capacity 15 | 8 15 15 15 15 15 15 15 15 15 15 15 15 15 15 15 15 15 15 15 15 5 5 5 5 Final Carried 15 | 7 15 15 15 15 15 15 12 10 9 12 15 15 15 15 11 15 15 15 15 15 5 1 5 2 Class Distribution -------------------- 40% | Mutant 34% | Scavenger-Mutant 14% | Scavenger-Gunner 5% | Hacker-Mutant 4% | Hacker-Sprinter Dominant Class ---------------- Mutant | -10/Materials Mutant | -10/Mines Mutant | -10/Exiles Mutant | -9/Mines Mutant | -8/Materials Mutant | -7/Factory Mutant | -7/Lower Caves Mutant | -7/Lower Caves Mutant | -7/Data Miner Mutant | -6/Proximity Caves Mutant | -6/Factory Scavenger-Mutant | -6/Lower Caves Scavenger-Mutant | -6/Zion Scavenger-Mutant | -5/Proximity Caves Scavenger-Gunner | -5/Factory Scavenger-Mutant | -5/Upper Caves Scavenger-Mutant | -5/Upper Caves Scavenger-Gunner | -5/Warlord Scavenger-Gunner | -4/Proximity Caves Scavenger-Mutant | -4/Factory Scavenger-Gunner | -4/Extension Hacker-Mutant | -3/Research Hacker-Sprinter | -2/Research Hacker-Mutant | -1/Access Resources | -11 -10 -10 -10 -9 -8 -7 -7 -7 -7 -6 -6 -6 -6 -5 -5 -5 -5 -5 -4 -4 -4 -3 -2 -1 ----------- Run | Jun Mat Min Exi Min Mat Fac Low Low Dat Pro Fac Low Zio Pro Fac Upp Upp War Pro Fac Ext Res Res Acc Matter Collected 6965 | 290 536 81 . 15 1097 42 529 243 . 134 592 . 36 104 622 252 338 455 377 301 703 122 96 . Remotely . | . . . . . . . . . . . . . . . . . . . . . . . . . Salvage Created 7036 | 72 656 17 . . 1145 42 336 168 . 246 1142 . . 83 1169 224 374 34 . 198 669 285 . 176 Parts 376 | 2 43 5 . . 89 3 14 7 . 14 63 . . 4 68 13 4 2 . 12 13 12 . 8 Haulers Intercepted 8 | . 1 . . . 4 1 . . . . 1 . . . 1 . . . . . . . . . Recyclers Shooed 3 | . 1 . . . 1 . . . . . . . . . 1 . . . . . . . . . Parts Field Recycled . | . . . . . . . . . . . . . . . . . . . . . . . . . Retrieved Matter . | . . . . . . . . . . . . . . . . . . . . . . . . . Parts Self-Destructed 65 | . . . . . . . 18 7 . 12 . . . 4 . 9 3 . 12 . . . . . Prevented 1 | . . . . . . . . . . . . . . . . . 1 . . . . . . . Kills | -11 -10 -10 -10 -9 -8 -7 -7 -7 -7 -6 -6 -6 -6 -5 -5 -5 -5 -5 -4 -4 -4 -3 -2 -1 ------- Run | Jun Mat Min Exi Min Mat Fac Low Low Dat Pro Fac Low Zio Pro Fac Upp Upp War Pro Fac Ext Res Res Acc Combat Hostiles Destroyed 154 | . 11 3 . . 24 . 12 7 . 6 15 . . 2 31 4 4 2 . 4 17 9 . 3 Guns 73 | . 11 . . . 14 . 5 4 . 2 15 . . 2 6 4 1 . . 4 5 . . . Cannons 9 | . . . . . . . . . . . . . . . 1 . . . . . 6 2 . . AOE 72 | . . 3 . . 10 . 7 3 . 4 . . . . 24 . 3 2 . . 6 7 . 3 Classes Destroyed 19 | 1 5 . . . 4 . 2 . . 1 2 . . 2 1 . . 1 . . . . . . Worker 8 | . . . . . 3 . . . . . 2 . . . 2 . . . . . . 1 . . Builder 8 | . 1 . . . . . . . . . . . . . 7 . . . . . . . . . Tunneler 1 | . . . . . 1 . . . . . . . . . . . . . . . . . . . Hauler 8 | . 1 . . . 4 1 . . . . 1 . . . 1 . . . . . . . . . Recycler 7 | 1 3 . . . 1 . . . . . . . . . 1 . . . . . 1 . . . Drone 1 | . . . . . . . . . . . . . . 1 . . . . . . . . . . Watcher 7 | . 2 . . . 3 . . . . . 1 . . . . . . . . . . 1 . . Swarmer 53 | . 6 3 . . 7 . 6 7 . 4 1 . . . 10 1 . . . . 5 3 . . Grunt 40 | . 5 . . . 8 . 1 . . . 7 . . . 5 1 3 . . . 7 3 . . Brawler 4 | . . . . . . . 3 . . . . . . . . . 1 . . . . . . . Duelist 1 | . . . . . . . 1 . . . . . . . . . . . . . . . . . Protector 3 | . . . . . . . . . . . . . . . 3 . . . . . . . . . Sentry 19 | . . . . . 8 . 1 . . 1 3 . . . 2 1 . . . . 3 . . . Specialist 7 | . . . . . . . . . . . 2 . . . 5 . . . . . . . . . Hunter 9 | . . . . . . . . . . . . . . 1 2 1 . 1 . . 2 2 . . Programmer 13 | . . . . . . . . . . . 1 . . . 4 . . . . 4 . 1 . 3 Heavy 2 | . . . . . 1 . . . . . 1 . . . . . . . . . . . . . Behemoth 1 | . . . . . . . . . . 1 . . . . . . . . . . . . . . Executioner 1 | . . . . . . . . . . . . . . . . . . 1 . . . . . . Decomposer 1 | . . . . . . . 1 . . . . . . . . . . . . . . . . . Best Kill Streak 14 | 1 3 3 . . 7 1 8 7 . 4 5 . . 1 14 3 4 2 . 3 7 5 . 3 Combat Bots Only 11 | . 3 3 . . 5 . 8 7 . 4 4 . . 1 11 3 4 2 . 3 6 4 . 3 Max Kills in Single Turn 6 | 1 1 3 . . 4 1 4 3 . 4 2 . . 1 6 2 1 1 . 1 3 3 . 2 Gunslinging 1 | . . . . . . . . . . . . . . . . 1 . . . . . . . . Exploded 5 | . . 3 . . 3 . 4 3 . 4 . . . . 5 . 1 1 . . 3 2 . 2 Melee . | . . . . . . . . . . . . . . . . . . . . . . . . . Uniques/NPCs Destroyed . | . . . . . . . . . . . . . . . . . . . . . . . . . Combat | -11 -10 -10 -10 -9 -8 -7 -7 -7 -7 -6 -6 -6 -6 -5 -5 -5 -5 -5 -4 -4 -4 -3 -2 -1 -------- Run | Jun Mat Min Exi Min Mat Fac Low Low Dat Pro Fac Low Zio Pro Fac Upp Upp War Pro Fac Ext Res Res Acc Damage Taken 14877 | . 411 10 . . 1134 . 928 502 . 221 1366 . . 130 2897 212 339 123 455 640 2825 669 . 2015 Core 2409 | . 118 . . . 106 . 108 83 . 48 24 . . . 243 . . 44 24 16 694 70 . 831 Absorbed by Shields 411 | . . . . . . . . . . . 55 . . . 131 39 35 12 74 10 . . . 55 Redirected to Shielding 171 | . . . . . 24 . 11 88 . . 1 . . . 29 . . 2 5 3 8 . . . Regen/Repaired (Parts) 207 | . 42 . . . 32 . . . . . . . . . . . . 133 . . . . . . Core Remaining (%) 74 | 100 . . . 52 80 . . . . 65 . . . 97 . . . . 68 . 38 94 100 48 Volleys Fired 426 | 5 74 2 . . 95 2 17 10 . 13 50 . . 13 49 12 11 2 6 14 34 13 . 4 Largest 3 | 2 2 1 . . 2 2 2 2 . 2 2 . . 2 3 2 3 3 2 3 3 1 . 1 Hottest 125 | 40 40 30 . . 120 56 59 58 . 59 60 . . 60 88 58 58 56 56 91 125 69 . 49 Shots Fired 840 | 10 148 2 . . 178 4 27 14 . 23 88 . . 26 106 25 23 6 12 40 91 13 . 4 Gun 758 | 10 148 1 . . 167 4 23 13 . 22 88 . . 26 97 25 19 4 12 40 55 4 . . Cannon 28 | . . . . . . . . . . . . . . . . . . . . . 28 . . . Launcher 19 | . . 1 . . 8 . 4 1 . 1 . . . . . . . . . . . . . 4 Special 35 | . . . . . 3 . . . . . . . . . 9 . 4 2 . . 8 9 . . Kinetic 782 | 10 148 1 . . 167 4 23 13 . 22 88 . . 26 97 25 19 4 12 40 83 . . . Thermal 7 | . . . . . 3 . . . . . . . . . . . . . . . . 4 . . Explosive 51 | . . 1 . . 8 . 4 1 . 1 . . . . 9 . 4 2 . . 8 9 . 4 Electromagnetic . | . . . . . . . . . . . . . . . . . . . . . . . . . Robot Hit Streak 19 | 3 12 1 . . 19 5 12 6 . 7 19 . . 3 7 5 7 1 7 17 15 13 . 15 Robot Miss Streak 8 | 2 5 1 . . 7 2 3 8 . 1 2 . . 6 3 4 3 1 3 2 3 . . . Penetration Max 2 | . . . . . . . . . . . 2 . . . . . . 1 . . 1 . . . Secondary Targets 7 | . . . . . 1 . 1 1 . . 1 . . . 1 1 . . . 1 . . . . Max Gunslinging Chain 1 | . . . . . 1 . 1 1 . . 1 . . . 1 1 . . . 1 . . . . Shots Hit Robots 551 | 6 78 1 . . 124 4 20 14 . 18 61 . . 9 73 12 16 1 10 32 59 11 . 2 Core Hits 400 | 2 31 5 . . 79 3 36 19 . 16 31 . . 4 78 7 16 3 3 7 37 17 . 6 Critical Kills 13 | . . . . . . . . . . . 6 . . . 2 1 . . . 2 2 . . . Critical Parts Destroyed 14 | . . . . . . . 1 . . . 2 . . 1 3 . 1 1 . 1 4 . . . Critical Strikes 44 | . . . . . . . 1 . . . 8 . . 1 9 1 6 2 . 3 10 3 . . Burn 1 | . . . . . . . . . . . . . . . . . . . . . . 1 . . Destroy 26 | . . . . . . . 1 . . . 7 . . 1 5 1 1 1 . 3 6 . . . Blast 2 | . . . . . . . . . . . . . . . . . . . . . 2 . . . Smash 1 | . . . . . . . . . . . 1 . . . . . . . . . . . . . Sever 11 | . . . . . . . . . . . . . . . 4 . 2 1 . . 2 2 . . Impale 3 | . . . . . . . . . . . . . . . . . 3 . . . . . . . Melee Attacks 38 | . 3 . . . 4 . . 2 . . 6 . . . 4 . 4 . 2 10 3 . . . Impact 9 | . . . . . 1 . . 2 . . 6 . . . . . . . . . . . . . Slashing 6 | . 3 . . . 3 . . . . . . . . . . . . . . . . . . . Piercing 23 | . . . . . . . . . . . . . . . 4 . 4 . 2 10 3 . . . Sneak Attacks . | . . . . . . . . . . . . . . . . . . . . . . . . . Combat Hostiles . | . . . . . . . . . . . . . . . . . . . . . . . . . Follow-up Attacks . | . . . . . . . . . . . . . . . . . . . . . . . . . Damage Inflicted 23374 | 66 808 65 . 4 2348 62 1080 550 . 489 1493 . . 142 6697 229 1556 468 181 843 3646 2114 . 533 Guns 8893 | 66 805 . . . 1758 62 351 171 . 275 1453 . . 142 1263 229 267 75 111 843 947 75 . . Cannons 584 | . . . . . . . . . . . . . . . . . . . . . 584 . . . Explosions 12265 | . . 65 . . 590 . 729 214 . 214 . . . . 5217 . 871 344 . . 1867 1621 . 533 Melee 556 | . . . . . . . . 165 . . 40 . . . . . 281 . 70 . . . . . Ramming 71 | . 3 . . 4 . . . . . . . . . . . . . . . . 62 2 . . Kinetic 9402 | 66 805 . . . 1758 62 351 171 . 275 1453 . . 142 1263 229 267 75 111 843 1531 . . . Thermal 75 | . . . . . . . . . . . . . . . . . . . . . . 75 . . Explosive 12265 | . . 65 . . 590 . 729 214 . 214 . . . . 5217 . 871 344 . . 1867 1621 . 533 Electromagnetic . | . . . . . . . . . . . . . . . . . . . . . . . . . Impact 205 | . . . . . . . . 165 . . 40 . . . . . . . . . . . . . Slashing 1005 | . . . . . . . . . . . . . . . 217 . 137 49 . . 186 416 . . Piercing 351 | . . . . . . . . . . . . . . . . . 281 . 70 . . . . . Highest Corruption 17 | . . . . . . . 3 3 3 3 1 1 1 . 16 16 16 16 . 16 17 . . 8 Average Corruption 9 | . . . . . . . 2 3 3 3 1 1 1 . 8 16 16 16 . 14 16 . . 5 Corruption Purged . | . . . . . . . . . . . . . . . . . . . . . . . . . Corruption Blocked 42 | . . . . . . . . . . . . . . . . . . . . . . . 14 28 Effects 137 | . . . . . . . 3 10 2 2 2 1 1 . 14 20 20 2 . 24 31 . . 5 Message Errors 31 | . . . . . . . . 3 2 1 1 . 1 . 3 8 7 . . 3 2 . . . Matter Fused 37 | . . . . . . . . 3 . . 1 1 . . 5 4 5 1 . 4 9 . . 4 Heat Flow Errors 17 | . . . . . . . . 2 . . . . . . . 4 2 . . 5 4 . . . Energy Discharges 6 | . . . . . . . . . . . . . . . . 1 1 . . . 4 . . . Parts Rejected 1 | . . . . . . . . . . . . . . . . . . . . . . . . 1 Parts Fused 3 | . . . . . . . . . . . . . . . . . . 1 . 1 1 . . . Data Loss (minor) 18 | . . . . . . . 2 1 . 1 . . . . 2 1 3 . . 5 3 . . . Data Loss (major) 10 | . . . . . . . 1 . . . . . . . 3 . 1 . . 3 2 . . . Misfires 6 | . . . . . . . . . . . . . . . 1 1 . . . . 4 . . . Alerts 1 | . . . . . . . . . . . . . . . . 1 . . . . . . . . Misdirections 2 | . . . . . . . . . . . . . . . . . . . . 1 1 . . . Weapon Failures 5 | . . . . . . . . 1 . . . . . . . . 1 . . 2 1 . . . Overload Shots . | . . . . . . . . . . . . . . . . . . . . . . . . . Overflow Damage 828 | . . . . . 55 . 73 63 . . 40 . . . 127 . 147 31 . . 171 88 . 33 Projectiles 49 | . . . . . . . . . . . . . . . . . . . . . 49 . . . Explosions 559 | . . . . . 55 . 73 19 . . . . . . 127 . 22 31 . . 111 88 . 33 Melee 220 | . . . . . . . . 44 . . 40 . . . . . 125 . . . 11 . . . Knockbacks 7 | . . . . . . . . . . . . . . . . . . . . . 7 . . . Impact 1 | . . . . . . . . . . . . . . . . . . . . . 1 . . . Kinetic 5 | . . . . . . . . . . . . . . . . . . . . . 5 . . . Secondary 1 | . . . . . . . . . . . . . . . . . . . . . 1 . . . Self-Inflicted Damage 262 | . . . . . 52 . 132 20 . . . . . . . . . . . . . 1 . 57 Shots 10 | . . . . . 3 . 4 1 . . . . . . . . . . . . . . . 2 Rammed 4 | . 1 . . 2 . . . . . . . . . . . . . . . . . 1 . . Targets Rammed 8 | . 1 . . 2 . . . . . . . . . . . . . . . . 4 1 . . Kicked 4 | . . . . . . . . . . . . . . . . . . . . . 4 . . . Crushed . | . . . . . . . . . . . . . . . . . . . . . . . . . Highest Temperature 485 | . 25 . . . 36 . 2 197 . 2 19 . . . 134 230 255 191 . 269 485 58 . 17 Average Temperature 61 | . 8 . . . 10 . 2 112 . 2 3 . . . 45 76 79 107 . 90 168 34 . 9 Received Heat Transfer 1918 | . 126 . . . 279 . 63 . . 42 366 . . . 331 27 143 . 22 . 367 84 . 68 Effects 6 | . . . . . . . . . . . . . . . . . . . . 1 5 . . . Shutdowns 1 | . . . . . . . . . . . . . . . . . . . . . 1 . . . Energy Bleed 1 | . . . . . . . . . . . . . . . . . . . . 1 . . . . Interference 3 | . . . . . . . . . . . . . . . . . . . . . 3 . . . Damage (minor) 1 | . . . . . . . . . . . . . . . . . . . . . 1 . . . Siege Activations . | . . . . . . . . . . . . . . . . . . . . . . . . . Robots Corrupted . | . . . . . . . . . . . . . . . . . . . . . . . . . Combat Hostiles . | . . . . . . . . . . . . . . . . . . . . . . . . . Parts Fried . | . . . . . . . . . . . . . . . . . . . . . . . . . Impact Corruptions 4 | . . . . . . . . 2 . . 1 . . . . . . . . . 1 . . . Robots Melted . | . . . . . . . . . . . . . . . . . . . . . . . . . Combat Hostiles . | . . . . . . . . . . . . . . . . . . . . . . . . . Parts Melted . | . . . . . . . . . . . . . . . . . . . . . . . . . Heat Transferred 222 | . . . . . . . . . . . . . . . . . . . . . . 222 . . Parts Sabotaged . | . . . . . . . . . . . . . . . . . . . . . . . . . Parts Stolen . | . . . . . . . . . . . . . . . . . . . . . . . . . Parts Stripped . | . . . . . . . . . . . . . . . . . . . . . . . . . Power Chain Reactions . | . . . . . . . . . . . . . . . . . . . . . . . . . Missiles Intercepted . | . . . . . . . . . . . . . . . . . . . . . . . . . Alert | -11 -10 -10 -10 -9 -8 -7 -7 -7 -7 -6 -6 -6 -6 -5 -5 -5 -5 -5 -4 -4 -4 -3 -2 -1 ------- Run | Jun Mat Min Exi Min Mat Fac Low Low Dat Pro Fac Low Zio Pro Fac Upp Upp War Pro Fac Ext Res Res Acc Peak Influence 1172 | 5 233 78 . 5 595 291 . . . . 311 . . . 1172 . . . . 72 665 597 430 483 Initial 750 | . 3 . . . 1 270 . . . . 75 . . . 750 . . . . . 12 285 335 173 Average 248 | 1 57 27 . 4 239 276 . . . . 167 . . . 755 . . . . 24 302 388 366 308 Maximum Alert Level 4 | . 1 . . . 2 1 . . . . 1 . . . 4 . . . . . 2 2 2 2 Low Security (%) 49 | 100 92 100 . 100 48 . . . . . 60 . . . . . . . . 100 16 . . 6 Level 1 29 | . 7 . . . 26 100 . . . . 39 . . . . . . . . . 63 63 67 75 Level 2 15 | . . . . . 25 . . . . . . . . . 46 . . . . . 19 36 32 17 Level 3 4 | . . . . . . . . . . . . . . . 36 . . . . . . . . . Level 4 1 | . . . . . . . . . . . . . . . 16 . . . . . . . . . Level 5 . | . . . . . . . . . . . . . . . . . . . . . . . . . High Security . | . . . . . . . . . . . . . . . . . . . . . . . . . Max Security . | . . . . . . . . . . . . . . . . . . . . . . . . . Squads Dispatched 39 | . 2 . . . 7 . . . . . 9 . . . 5 . . . . 2 5 5 . 4 Investigation 9 | . 1 . . . 2 . . . . . 1 . . . 2 . . . . . 1 . . 2 Extermination 6 | . . . . . . . . . . . 2 . . . 1 . . . . 1 . 1 . 1 Reinforcement 16 | . 1 . . . 1 . . . . . 3 . . . 1 . . . . 1 4 4 . 1 Assault . | . . . . . . . . . . . . . . . . . . . . . . . . . Garrison 8 | . . . . . 4 . . . . . 3 . . . 1 . . . . . . . . . Intercept . | . . . . . . . . . . . . . . . . . . . . . . . . . Searches Triggered 3 | . . . . . . . . . . . . . . . 2 . . . . . . . . 1 Data Miner Redirects 2 | . . . . . . . . . . . 1 . . . 1 . . . . . . . . . Construction Impeded 3 | . . . . . . . . . . . . . . . 1 . . . . . 2 . . . Haulers Reinforced 2 | . . . . . . . . . . . 1 . . . . . . . . . . 1 . . Active Scanning Responses . | . . . . . . . . . . . . . . . . . . . . . . . . . Cargo Convoy Interrupts 2 | . . . . . . . . . . . . . . . 1 . . . . 1 . . . . Stealth | -11 -10 -10 -10 -9 -8 -7 -7 -7 -7 -6 -6 -6 -6 -5 -5 -5 -5 -5 -4 -4 -4 -3 -2 -1 --------- Run | Jun Mat Min Exi Min Mat Fac Low Low Dat Pro Fac Low Zio Pro Fac Upp Upp War Pro Fac Ext Res Res Acc Distress Signals 22 | . 2 . . . 5 . . . . . 1 . . . 1 . . . . . 2 . 5 6 Communications Jammed . | . . . . . . . . . . . . . . . . . . . . . . . . . Distress Signals . | . . . . . . . . . . . . . . . . . . . . . . . . . Times Spotted 272 | . 21 6 . . 37 . 15 7 . 10 17 . . 5 40 4 6 8 4 5 25 16 7 39 Peak Tracking Total 20 | . 3 4 . . 7 . 8 7 . 4 5 . . 2 13 3 5 8 2 2 6 5 4 20 Tactical Retreats 24 | . 2 . . . 6 . . . . . 1 . . . 2 . 1 . . . 1 1 2 8 Traps | -11 -10 -10 -10 -9 -8 -7 -7 -7 -7 -6 -6 -6 -6 -5 -5 -5 -5 -5 -4 -4 -4 -3 -2 -1 ------- Run | Jun Mat Min Exi Min Mat Fac Low Low Dat Pro Fac Low Zio Pro Fac Upp Upp War Pro Fac Ext Res Res Acc Traps Triggered 12 | . 3 . . . . . . . . . 2 . . . 3 . . 1 . . . . . 3 Indirectly . | . . . . . . . . . . . . . . . . . . . . . . . . . Trap Hack Attempts . | . . . . . . . . . . . . . . . . . . . . . . . . . Triggered . | . . . . . . . . . . . . . . . . . . . . . . . . . Disarmed . | . . . . . . . . . . . . . . . . . . . . . . . . . Reprogrammed . | . . . . . . . . . . . . . . . . . . . . . . . . . Reused . | . . . . . . . . . . . . . . . . . . . . . . . . . Traps Extracted . | . . . . . . . . . . . . . . . . . . . . . . . . . Installed . | . . . . . . . . . . . . . . . . . . . . . . . . . Triggered 15 | . . . . . . . . . . . . . . . . . 1 13 . 1 . . . . Machines | -11 -10 -10 -10 -9 -8 -7 -7 -7 -7 -6 -6 -6 -6 -5 -5 -5 -5 -5 -4 -4 -4 -3 -2 -1 ---------- Run | Jun Mat Min Exi Min Mat Fac Low Low Dat Pro Fac Low Zio Pro Fac Upp Upp War Pro Fac Ext Res Res Acc Machines Disabled 23 | . . . . . 2 . . . . . 2 . . . 10 . . . . . 7 1 . 1 Max in Single Turn 7 | . . . . . 1 . . . . . 1 . . . 7 . . . . . 3 1 . 1 Garrison Access 3 | . . . . . . . . . . . . . . . . . . . . 1 . . 1 1 Energy Cycler 3 | . . . . . . . . . . . . . . . . . . . . . 2 . . 1 Machines Repaired . | . . . . . . . . . . . . . . . . . . . . . . . . . Machines Sabotaged . | . . . . . . . . . . . . . . . . . . . . . . . . . Overloaded Fab Kills . | . . . . . . . . . . . . . . . . . . . . . . . . . Hacking | -11 -10 -10 -10 -9 -8 -7 -7 -7 -7 -6 -6 -6 -6 -5 -5 -5 -5 -5 -4 -4 -4 -3 -2 -1 --------- Run | Jun Mat Min Exi Min Mat Fac Low Low Dat Pro Fac Low Zio Pro Fac Upp Upp War Pro Fac Ext Res Res Acc Machines Accessed 70 | . 10 . 2 1 11 2 1 . 4 . 4 . . . 8 . . 4 . 5 4 3 1 10 Terminals 49 | . 8 . . 1 10 1 . . . . 2 . . . 7 . . . . 4 4 3 1 8 Fabricators 1 | . . . . . . 1 . . . . . . . . . . . . . . . . . . Repair Stations 5 | . 1 . . . 1 . . . . . 1 . . . 1 . . . . . . . . 1 Recycling Units 1 | . 1 . . . . . . . . . . . . . . . . . . . . . . . Scanalyzers . | . . . . . . . . . . . . . . . . . . . . . . . . . Garrison Access 3 | . . . . . . . . . . . 1 . . . . . . . . 1 . . . 1 Total Hacks 195 | . 30 . 5 4 30 5 1 . 29 . 13 . . . 18 . . 10 . 10 7 10 2 21 Successful 94 | . 14 . 5 2 8 2 1 . 29 . 3 . . . 6 . . 10 . 1 . 5 . 8 Failed 101 | . 16 . . 2 22 3 . . . . 10 . . . 12 . . . . 9 7 5 2 13 Catastrophic 24 | . 3 . . 1 5 1 . . . . 1 . . . 1 . . . . 4 4 1 . 3 Database Lockouts . | . . . . . . . . . . . . . . . . . . . . . . . . . Manual 85 | . 15 . 1 3 16 1 . . . . 4 . . . 7 . . 1 . 8 4 9 2 14 Terminals 127 | . 26 . . 4 28 3 . . . . 6 . . . 16 . . . . 8 7 10 2 17 Fabricators 2 | . . . . . . 2 . . . . . . . . . . . . . . . . . . Repair Stations 12 | . 3 . . . 2 . . . . . 3 . . . 2 . . . . . . . . 2 Recycling Units 1 | . 1 . . . . . . . . . . . . . . . . . . . . . . . Scanalyzers . | . . . . . . . . . . . . . . . . . . . . . . . . . Garrison Access 8 | . . . . . . . . . . . 4 . . . . . . . . 2 . . . 2 Terminal Hacks 64 | . 7 . 5 1 3 . 1 . 29 . 1 . . . 2 . . 10 . . . 2 . 3 Record 23 | . . . 4 . . . . . 11 . . . . . . . . 8 . . . . . . Part Schematic 11 | . . . . . . . . . 11 . . . . . . . . . . . . . . . Robot Schematic 4 | . . . . . . . . . 4 . . . . . . . . . . . . . . . Prototype ID Bank 3 | . . . . . . . . . 3 . . . . . . . . . . . . . . . Open Door 4 | . . . . . . . 1 . . . . . . . . . . 2 . . . . . 1 Level Access Points 2 | . . . . . . . . . . . . . . . . . . . . . . 1 . 1 Branch Access Points 1 | . . . . . . . . . . . . . . . 1 . . . . . . . . . Unreport Threat 3 | . 2 . . . 1 . . . . . . . . . . . . . . . . . . . Locate Traps 2 | . 1 . . . 1 . . . . . . . . . . . . . . . . . . . Security Status 1 | . 1 . . . . . . . . . . . . . . . . . . . . . . . Surveillance Status 1 | . 1 . . . . . . . . . . . . . . . . . . . . . . . Hauler Manifests 1 | . 1 . . . . . . . . . . . . . . . . . . . . . . . Registered Components 1 | . . . . . . . . . . . 1 . . . . . . . . . . . . . Zone Layout 6 | . 1 . . 1 1 . . . . . . . . . 1 . . . . . . 1 . 1 EX-Prototype ID Bank 1 | . . . 1 . . . . . . . . . . . . . . . . . . . . . Fabricator Hacks 1 | . . . . . . 1 . . . . . . . . . . . . . . . . . . Network Status 1 | . . . . . . 1 . . . . . . . . . . . . . . . . . . Repair Station Hacks 5 | . 2 . . . 2 . . . . . 1 . . . . . . . . . . . . . Scan Component 3 | . 1 . . . 1 . . . . . 1 . . . . . . . . . . . . . Repair 2 | . 1 . . . 1 . . . . . . . . . . . . . . . . . . . Recycling Unit Hacks 1 | . 1 . . . . . . . . . . . . . . . . . . . . . . . Retrieve Components 1 | . 1 . . . . . . . . . . . . . . . . . . . . . . . Scanalyzer . | . . . . . . . . . . . . . . . . . . . . . . . . . Garrison Access Hacks 2 | . . . . . . . . . . . . . . . . . . . . 1 . . . 1 Seal Access 2 | . . . . . . . . . . . . . . . . . . . . 1 . . . 1 Unauthorized Hacks 21 | . 4 . . 1 3 1 . . . . 1 . . . 4 . . . . . . 3 . 4 Terminals 21 | . 4 . . 1 3 1 . . . . 1 . . . 4 . . . . . . 3 . 4 Assimilate 3 | . . . . . 1 . . . . . . . . . . . . . . . . 1 . 1 Botnet 18 | . 4 . . 1 2 1 . . . . 1 . . . 4 . . . . . . 2 . 3 Fabricators . | . . . . . . . . . . . . . . . . . . . . . . . . . Repair Stations . | . . . . . . . . . . . . . . . . . . . . . . . . . Recycling Units . | . . . . . . . . . . . . . . . . . . . . . . . . . Scanalyzers . | . . . . . . . . . . . . . . . . . . . . . . . . . Garrison Access . | . . . . . . . . . . . . . . . . . . . . . . . . . Data Cores Recovered . | . . . . . . . . . . . . . . . . . . . . . . . . . Used . | . . . . . . . . . . . . . . . . . . . . . . . . . Hacking Detections 55 | . 9 . . 1 10 2 . . . . 4 . . . 8 . . . . 5 4 3 1 8 Full Trace Events 8 | . 1 . . . 2 . . . . . 1 . . . 1 . . . . . 1 . . 2 Feedback Events . | . . . . . . . . . . . . . . . . . . . . . . . . . Feedback Blocked . | . . . . . . . . . . . . . . . . . . . . . . . . . Robot Schematics Acquired 7 | . . . . . . . . . 4 . . . 3 . . . . . . . . . . . Robots Built . | . . . . . . . . . . . . . . . . . . . . . . . . . Authchips . | . . . . . . . . . . . . . . . . . . . . . . . . . Time . | . . . . . . . . . . . . . . . . . . . . . . . . . Total Robot Build Rating . | . . . . . . . . . . . . . . . . . . . . . . . . . Part Schematics Acquired 25 | . . . . . . . . . 11 . . . 14 . . . . . . . . . . . Parts Built . | . . . . . . . . . . . . . . . . . . . . . . . . . Authchips . | . . . . . . . . . . . . . . . . . . . . . . . . . Time . | . . . . . . . . . . . . . . . . . . . . . . . . . Total Part Build Rating . | . . . . . . . . . . . . . . . . . . . . . . . . . Parts Repaired 2 | . 1 . . . 1 . . . . . . . . . . . . . . . . . . . Time 58 | . 26 . . . 32 . . . . . . . . . . . . . . . . . . . Parts Recycled . | . . . . . . . . . . . . . . . . . . . . . . . . . Recycled Matter . | . . . . . . . . . . . . . . . . . . . . . . . . . Retrieved Matter . | . . . . . . . . . . . . . . . . . . . . . . . . . Retrieved Components 10 | . 10 . . . . . . . . . . . . . . . . . . . . . . . Parts Scanalyzed . | . . . . . . . . . . . . . . . . . . . . . . . . . Part Schematics Acquired . | . . . . . . . . . . . . . . . . . . . . . . . . . Parts Damaged . | . . . . . . . . . . . . . . . . . . . . . . . . . Bothacking | -11 -10 -10 -10 -9 -8 -7 -7 -7 -7 -6 -6 -6 -6 -5 -5 -5 -5 -5 -4 -4 -4 -3 -2 -1 ------------ Run | Jun Mat Min Exi Min Mat Fac Low Low Dat Pro Fac Low Zio Pro Fac Upp Upp War Pro Fac Ext Res Res Acc Used RIF Installer . | . . . . . . . . . . . . . . . . . . . . . . . . . Robots Hacked . | . . . . . . . . . . . . . . . . . . . . . . . . . Non-combat . | . . . . . . . . . . . . . . . . . . . . . . . . . Combat . | . . . . . . . . . . . . . . . . . . . . . . . . . Robot Hacks Applied . | . . . . . . . . . . . . . . . . . . . . . . . . . Relay Couplers Released 5 | . . . . . . . . . . . 3 . . . . . . . . . . . 2 . Machine Destruction 2 | . . . . . . . . . . . . . . . . . . . . . . . 2 . Programmers 3 | . . . . . . . . . . . 3 . . . . . . . . . . . . . Fabnet Peak Effective % . | . . . . . . . . . . . . . . . . . . . . . . . . . Robots Rewired 12 | . . . . . . . 1 . . . . . . . . . . 5 . . 6 . . . Allies Hacked 1 | . . . . . . . . . . . . . . . . . . . . . . . . 1 Hacks Repelled . | . . . . . . . . . . . . . . . . . . . . . . . . . Allies | -11 -10 -10 -10 -9 -8 -7 -7 -7 -7 -6 -6 -6 -6 -5 -5 -5 -5 -5 -4 -4 -4 -3 -2 -1 -------- Run | Jun Mat Min Exi Min Mat Fac Low Low Dat Pro Fac Low Zio Pro Fac Upp Upp War Pro Fac Ext Res Res Acc Total Allies 30 | . . . . 3 . . 1 . . 1 12 . . . . . . 5 . . 6 1 . 1 Largest Group 8 | . . . . 3 3 . 1 1 . 1 8 . . . . . . 5 5 3 4 1 1 1 Highest-Rated Group 215 | . . . . 40 40 . 30 30 . 96 163 . . . . . . 215 215 131 178 10 10 45 Highest-Rated Ally 96 | . . . . 16 16 . 30 30 . 96 31 . . . . . . 49 49 49 51 10 10 45 Total Orders 3 | . . . . . . . . . . . . . . . . . . . . . . . 2 1 EXPLORE 2 | . . . . . . . . . . . . . . . . . . . . . . . 1 1 RETURN 1 | . . . . . . . . . . . . . . . . . . . . . . . 1 . Ally Attacks 110 | . . . . . 9 . . 1 . 6 14 . . . . . . 13 37 3 27 . . . Total Damage 3182 | . . . . . 76 . . . . 242 171 . . . . . . 579 1073 54 987 . . . Kills 15 | . . . . . . . . . . . 1 . . . . . . 3 4 . 7 . . . Allies Corrupted 2 | . . . . . . . . . . . . . . . . . . . . 1 . . . 1 Allies Melted 1 | . . . . . . . . . . . . . . . . . . . . . . . 1 . Intel | -11 -10 -10 -10 -9 -8 -7 -7 -7 -7 -6 -6 -6 -6 -5 -5 -5 -5 -5 -4 -4 -4 -3 -2 -1 ------- Run | Jun Mat Min Exi Min Mat Fac Low Low Dat Pro Fac Low Zio Pro Fac Upp Upp War Pro Fac Ext Res Res Acc Robot Analysis Total . | . . . . . . . . . . . . . . . . . . . . . . . . . Derelict Logs Recovered 12 | . . 1 . 2 . . . . . 1 . . 1 2 . 2 2 . 1 . . . . . Drone Launches 6 | . . . . . . . . . . . . . . . . . . . . . . . 3 3 Drone Recoveries 6 | . . . . . . . . . . . . . . . . . . . . . . . 3 3 Decoded 0b10 Intel 185 | . . . . . . . . . . . . . . . . . . . . 47 31 41 33 33 Items 185 | . . . . . . . . . . . . . . . . . . . . 47 31 41 33 33 Exploration | -11 -10 -10 -10 -9 -8 -7 -7 -7 -7 -6 -6 -6 -6 -5 -5 -5 -5 -5 -4 -4 -4 -3 -2 -1 ------------- Run | Jun Mat Min Exi Min Mat Fac Low Low Dat Pro Fac Low Zio Pro Fac Upp Upp War Pro Fac Ext Res Res Acc Turns Passed 15861 | 80 1607 322 338 277 1558 258 463 338 77 399 1267 45 1373 753 1117 501 432 1072 458 897 649 679 444 457 Spaces Moved 11996 | 53 786 189 208 172 1399 152 329 273 77 346 724 26 829 430 588 408 308 752 299 584 345 619 964 1136 Core 112 | 1 . . . . . . . . . . . . . . 2 . . . . . 11 97 . 1 Treads 3038 | . 550 189 208 172 31 131 . . . . 282 26 829 430 190 . . . . . . . . . Legs 2654 | . 41 . . . . . . . . . . . . . 268 68 308 752 299 584 334 . . . Wheels 2654 | 52 195 . . . . 21 329 273 77 346 442 . . . 128 340 . . . . . 451 . . Hover . | . . . . . . . . . . . . . . . . . . . . . . . . . Flight 3538 | . . . . . 1368 . . . . . . . . . . . . . . . . 71 964 1135 Fastest Speed 25 | 50 90 160 160 160 50 100 100 100 100 100 100 165 165 165 110 110 120 120 120 120 50 31 29 25 Average Speed 102 | 91 140 160 160 160 52 151 101 105 100 100 125 165 165 165 138 111 120 120 126 123 113 85 29 32 Slowest Speed 900 | 100 240 160 160 160 240 160 115 115 100 100 166 165 165 165 900 120 120 120 190 190 260 115 31 50 Overloaded Moves . | . . . . . . . . . . . . . . . . . . . . . . . . . Propulsion Burnouts . | . . . . . . . . . . . . . . . . . . . . . . . . . Robots Hopped 57 | . . . . . 10 . . . . . . . . . . . . . . . . 3 13 31 Cave-ins Triggered 1 | . . . . . . . . . . . . . . . 1 . . . . . . . . . Exploration Rate (%) 46 | 4 98 46 60 53 93 4 51 39 68 69 20 6 81 71 19 68 49 89 49 12 40 17 29 38 Regions Visited 24 Branch Regions 15 Pre-discovered Areas 5 | . . . 1 1 . . . . 1 . . . 1 . . 1 . . . . . . . . Known Exits Taken 18 | . . . . . 1 1 1 1 1 1 1 . 1 1 1 1 1 1 1 1 1 1 1 . Unknown Exits Taken 6 | 1 1 1 1 1 . . . . . . . 1 . . . . . . . . . . . . Scrap Searched 15 | . . 1 . . . . 1 1 . 3 . . 3 2 . 1 1 . 2 . . . . . Spaces Dug 78 | . 2 . . . 16 . 20 7 . . 5 . . . 4 . . . . 9 12 3 . . Terrain Destroyed 633 | . 2 8 . . 78 . 36 7 . 11 6 . . . 124 . 59 33 1 10 127 83 . 48 Melee 24 | . 2 . . . 4 . . . . . 5 . . . 4 . . . . 9 . . . . Projectile 42 | . . . . . 3 . . . . . 1 . . . 4 . 1 2 1 1 28 1 . . AOE 566 | . . 8 . . 71 . 36 7 . 11 . . . . 115 . 58 31 . . 99 82 . 48 Terrain Rammed . | . . . . . . . . . . . . . . . . . . . . . . . . . Walls Destroyed . | . . . . . . . . . . . . . . . . . . . . . . . . . Machines Disabled . | . . . . . . . . . . . . . . . . . . . . . . . . . Actions | -11 -10 -10 -10 -9 -8 -7 -7 -7 -7 -6 -6 -6 -6 -5 -5 -5 -5 -5 -4 -4 -4 -3 -2 -1 --------- Run | Jun Mat Min Exi Min Mat Fac Low Low Dat Pro Fac Low Zio Pro Fac Upp Upp War Pro Fac Ext Res Res Acc Total 14610 | 71 1146 212 215 173 2020 173 432 302 77 374 995 28 836 448 784 429 336 921 368 706 526 754 1107 1177 Wait 1508 | . 244 5 . . 444 5 62 10 . 5 139 2 . 6 94 . 7 108 33 64 23 93 140 24 Move 11869 | 52 785 188 207 171 1379 151 328 272 76 345 723 25 828 429 587 407 307 751 298 583 344 612 937 1084 Hop 45 | . . . . . 9 . . . . . . . . . . . . . . . . 3 13 20 Pick Up 124 | 7 12 6 1 . 19 2 2 2 . 5 17 . 4 . 6 5 1 8 6 4 4 7 4 2 Fast Attach 94 | 6 5 1 . . 8 2 . 1 . . 7 . . . 13 1 3 7 . 7 3 8 6 16 Attach 66 | . 3 . 1 . 3 2 3 2 1 1 9 . . . 8 1 1 2 1 5 7 9 1 6 Detach 21 | . . . 1 . . . . . . . 4 . . . 1 . . 2 1 3 2 2 3 2 Swap 133 | 1 10 2 1 . 35 5 4 3 . 4 10 1 . . 14 2 2 7 11 9 11 . . 1 Drop 135 | . 9 8 4 . 24 4 2 . . 1 18 . 4 . 8 1 . 15 10 7 8 6 3 3 Fire 426 | 5 74 2 . . 95 2 17 10 . 13 50 . . 13 49 12 11 2 6 14 34 13 . 4 Melee 38 | . 3 . . . 4 . . 2 . . 6 . . . 4 . 4 . 2 10 3 . . . Ram 1 | . . . . . . . . . . . . . . . . . . . . . . 1 . . Kick 4 | . . . . . . . . . . . . . . . . . . . . . 4 . . . Crush 3 | . 1 . . 2 . . . . . . . . . . . . . . . . . . . . Escape Stasis 27 | . . . . . . . . . . . 12 . . . . . . . . . . . . 15 Rewire 116 | . . . . . . . 14 . . . . . . . . . . 19 . . 83 . . . Trap . | . . . . . . . . . . . . . . . . . . . . . . . . . Miscellaneous . | . . . . . . . . . . . . . . . . . . . . . . . . . Route ------- -11/Junkyard -10/Materials (discovered 5 exits: [*Mat x3] / [*Min x2]) -10/Mines (discovered 2 exits: [*Mat] / *Exi) -10/Exiles -9/Mines -8/Materials (discovered 3 exits: *Fac x3) -7/Factory -7/Lower Caves -7/Lower Caves (discovered 2 exits: *Fac / *Dat) -7/Data Miner -6/Proximity Caves -6/Factory (discovered 2 exits: *Fac / *Low) -6/Lower Caves -6/Zion -5/Proximity Caves -5/Factory (discovered 3 exits: Fac / *Upp x2) -5/Upper Caves -5/Upper Caves -5/Warlord -4/Proximity Caves -4/Factory -4/Extension -3/Research (discovered 3 exits: *Res x3) -2/Research (discovered 2 exits: *Acc / *Tes) -1/Access (discovered 2 exits: *Sur / *Com) To Epsilon Eridani History --------- Turn | Location | Event 29 | -11/Junkyard | Discovered new exit (range 15) 81 | -11/Junkyard | Entered Materials 180 | -10/Materials | Discovered new exit (range 8) 187 | -10/Materials | Discovered new exit (range 8) 325 | -10/Materials | Build established: Mutant 398 | -10/Materials | Discovered new exit (range 16) 466 | -10/Materials | Discovered new exit (range 11) 674 | -10/Materials | Repaired Lgt. Treads? 941 | -10/Materials | Discovered new exit (range 16) 1688 | -10/Materials | Entered Mines 1740 | -10/Mines | Discovered new exit (range 15) 1794 | -10/Mines | Joined a pair of Derelicts in attacking an 0b10 outpost 1807 | -10/Mines | Learned Materials terminal intel 1952 | -10/Mines | Assembled infested the area 2004 | -10/Mines | Discovered new exit (range 5) 2010 | -10/Mines | Entered Exiles 2049 | -10/Exiles | Met 8R-AWN 2076 | -10/Exiles | Met EX-HEX 2126 | -10/Exiles | Met EX-BIN 2145 | -10/Exiles | Aligned with FarCom system 2146 | -10/Exiles | Given EX-Vault access code 2183 | -10/Exiles | Opened EX-Vault 2196 | -10/Exiles | Found Flying Fortress v7 2229 | -10/Exiles | Warned to stay clear of 0b10 Research branches 2274 | -10/Exiles | Met EX-DEC 2280 | -10/Exiles | Learned location of Zion (-6) 2335 | -10/Exiles | Discovered new exit (range 10) 2348 | -10/Exiles | Left Exiles lab with Flying Fortress v7 2348 | -10/Exiles | Entered Mines 2417 | -9/Mines | Assisted by bots powering up and referring to "LRC-V3" 2433 | -9/Mines | Learned location of 1 exit from Materials 2612 | -9/Mines | Discovered new exit (range 9) 2625 | -9/Mines | Entered Materials 2625 | -8/Materials | Accompanied by 3 allies 2625 | -8/Materials | Evolved 4 slots: Propulsion x2, Utility x2 2626 | -8/Materials | Identified exit to Factory 2627 | -8/Materials | Loaded intel: 12 terminal locations 2756 | -8/Materials | Repaired Hvy. Assault Rifle 2901 | -8/Materials | Garrison activated, responded to threat 3001 | -8/Materials | Discovered exit to Factory (range 4) 3848 | -8/Materials | Garrison activated, responded to threat 4043 | -8/Materials | Discovered exit to Factory (range 14) 4183 | -8/Materials | Entered Factory 4183 | -7/Factory | Evolved 2 slots: Utility x2 4237 | -7/Factory | Discovered new exit (range 6) 4253 | -7/Factory | Identified exit to Lower Caves 4441 | -7/Factory | Entered Lower Caves 4740 | -7/Lower Caves | Attracted the attention of an 0b10 outpost 4794 | -7/Lower Caves | Destroyed 8 combat bots 4797 | -7/Lower Caves | Lost 4 parts (1p3u) 4891 | -7/Lower Caves | Discovered new exit (range 11) 4903 | -7/Lower Caves | Identified exit to Lower Caves 4904 | -7/Lower Caves | Entered another Lower Caves area 4904 | -7/Lower Caves | Accompanied by 1 ally 4904 | -7/Lower Caves | Discovered new exit (range 8) 5103 | -7/Lower Caves | Destroyed 7 combat bots 5112 | -7/Lower Caves | Lost 3 parts (2n1w) 5237 | -7/Lower Caves | Discovered new exit (range 5) 5239 | -7/Lower Caves | Encountered a Warlord checkpoint 5241 | -7/Lower Caves | Identified exit to Data Miner 5242 | -7/Lower Caves | Entered Data Miner 5242 | -7/Data Miner | Discovered new exit (range 6) 5261 | -7/Data Miner | Met Data Miner 5278 | -7/Data Miner | Learned location of Section 7 (-3) 5278 | -7/Data Miner | Acquired the access code to Warlord's prototype stash 5296 | -7/Data Miner | Received God Mode back door access code from Data Miner 5317 | -7/Data Miner | Identified exit to Proximity Caves 5319 | -7/Data Miner | Entered Proximity Caves 5343 | -6/Proximity Caves | Learned Factory stockpile data 5402 | -6/Proximity Caves | Escorted by Enhanced Grunt 5422 | -6/Proximity Caves | Attracted the attention of an 0b10 checkpoint 5455 | -6/Proximity Caves | Spotted B-75 Beast 5490 | -6/Proximity Caves | Destroyed B-75 Beast 5711 | -6/Proximity Caves | Discovered new exit (range 9) 5717 | -6/Proximity Caves | Identified exit to Factory 5718 | -6/Proximity Caves | Entered Factory 5718 | -6/Factory | Evolved 2 slots: Utility x2 5876 | -6/Factory | Garrison activated, responded to threat 6066 | -6/Factory | Incoming investigation squad redirected 6359 | -6/Factory | Discovered new exit (range 15) 6463 | -6/Factory | Identified exit to Factory 6713 | -6/Factory | Build established: Scavenger-Mutant 6885 | -6/Factory | Discovered new exit (range 6) 6931 | -6/Factory | Identified exit to Lower Caves 6985 | -6/Factory | Entered Lower Caves 7028 | -6/Lower Caves | A Derelict revealed a hidden shortcut to a safe place 7030 | -6/Lower Caves | Entered Zion 7072 | -6/Zion | Discovered new exit (range 19) 7096 | -6/Zion | System corruption cleaned by Quarantine Array 7147 | -6/Zion | Found CR-A16's Pointy Stick 7339 | -6/Zion | Learned location of Quarantine (-3) 7382 | -6/Zion | Given the Hacking Drone Bay 7486 | -6/Zion | Learned location of 1 exit from Factory 8310 | -6/Zion | Found Prototype Special Weapon 8313 | -6/Zion | Found Prototype Special Weapon 8316 | -6/Zion | Found Prototype Special Weapon 8401 | -6/Zion | Identified exit to Proximity Caves 8403 | -6/Zion | Entered Proximity Caves 8406 | -5/Proximity Caves | Spotter reported a threat 8408 | -5/Proximity Caves | Spotter reported a threat 8721 | -5/Proximity Caves | Spotter reported a threat 8743 | -5/Proximity Caves | Learned Factory emergency access door positions 8748 | -5/Proximity Caves | Spotter reported a threat 8825 | -5/Proximity Caves | Learned Factory emergency access door positions 9081 | -5/Proximity Caves | Discovered exit to Factory (range 13) 9090 | -5/Proximity Caves | Spotter reported a threat 9156 | -5/Proximity Caves | Entered Factory 9156 | -5/Factory | Evolved 2 slots: Utility x1, Weapon x1 9157 | -5/Factory | Identified exit to Factory 9365 | -5/Factory | Identified exit to Upper Caves 9456 | -5/Factory | Search patrols dispatched 9457 | -5/Factory | Build established: Scavenger-Gunner 9756 | -5/Factory | Search patrols dispatched 9797 | -5/Factory | Incoming investigation squad redirected 9932 | -5/Factory | Cargo convoy interrupted 9935 | -5/Factory | Identified RU-N14's Throwing Claymores (x3) 9945 | -5/Factory | Garrison activated, responded to threat 9984 | -5/Factory | Destroyed 11 combat bots 10033 | -5/Factory | Lost 8 parts (4n2u2w) 10044 | -5/Factory | Destroyed 7 combat bots 10102 | -5/Factory | Crushed by falling debris 10102 | -5/Factory | System corruption reached 10% 10109 | -5/Factory | Destroyed 11 combat bots 10133 | -5/Factory | Lost 7 parts (1p4u2w) 10142 | -5/Factory | Build established: Scavenger-Mutant 10273 | -5/Factory | Entered Upper Caves 10413 | -5/Upper Caves | Learned Factory trap positions 10414 | -5/Upper Caves | Encountered a Warlord checkpoint 10610 | -5/Upper Caves | Attracted the attention of an 0b10 checkpoint 10766 | -5/Upper Caves | Discovered new exit (range 8) 10772 | -5/Upper Caves | Identified exit to Upper Caves 10774 | -5/Upper Caves | Entered another Upper Caves area 11080 | -5/Upper Caves | Learned Factory stockpile data 11141 | -5/Upper Caves | Discovered new exit (range 12) 11161 | -5/Upper Caves | Learned Factory garrison access intel 11169 | -5/Upper Caves | Identified exit to Warlord 11206 | -5/Upper Caves | Entered Warlord 11248 | -5/Warlord | System corruption cleaned by Quarantine Array 11606 | -5/Warlord | Found Prototype Special Weapon 11607 | -5/Warlord | Identified RU-N14's Throwing Claymores v3 11610 | -5/Warlord | Found RU-N14's Throwing Claymores v3 11885 | -5/Warlord | Visited the Vortex Lab 11900 | -5/Warlord | Build established: Scavenger-Gunner 11901 | -5/Warlord | Warlord's base attacked by MAIN.C 11958 | -5/Warlord | Met Warlord 11975 | -5/Warlord | Opened Warlord's prototype stash 11979 | -5/Warlord | Found Prototype Device 11979 | -5/Warlord | Identified Exp. Focal Shield 11991 | -5/Warlord | Found Prototype Reactor 11996 | -5/Warlord | Found Prototype Processor 11997 | -5/Warlord | Identified Exp. Targeting Computer 12197 | -5/Warlord | Opened side exit 12215 | -5/Warlord | Spotted Executioner 12216 | -5/Warlord | Spotted Striker 12217 | -5/Warlord | Spotted Executioner 12218 | -5/Warlord | Discovered new exit (range 15) 12227 | -5/Warlord | Allies destroyed Striker 12229 | -5/Warlord | Destroyed Executioner 12248 | -5/Warlord | Identified exit to Proximity Caves 12251 | -5/Warlord | Warlord forces counterattacked 12278 | -5/Warlord | Entered Proximity Caves 12278 | -4/Proximity Caves | Accompanied by 5 allies 12444 | -4/Proximity Caves | Spotted B-86 Titan 12458 | -4/Proximity Caves | Allies destroyed B-86 Titan 12566 | -4/Proximity Caves | Learned Research terminal intel 12700 | -4/Proximity Caves | Discovered exit to Factory (range 13) 12736 | -4/Proximity Caves | Entered Factory 12736 | -4/Factory | Accompanied by 3 allies 12736 | -4/Factory | Evolved 2 slots: Power x1, Utility x1 12737 | -4/Factory | Loaded intel: 73 trap records 12740 | -4/Factory | Loaded intel: 4 garrison access locations 13118 | -4/Factory | System corruption reached 10% 13528 | -4/Factory | Identified Vortex Chain Reactor 13589 | -4/Factory | Build established: Scavenger-Mutant 13604 | -4/Factory | Cargo convoy interrupted 13627 | -4/Factory | Discovered new exit (range 6) 13632 | -4/Factory | Identified exit to Extension 13633 | -4/Factory | Entered Extension 13997 | -4/Extension | Build established: Scavenger-Gunner 14022 | -4/Extension | Energy Cycler disabled 14022 | -4/Extension | Rescued a captive Derelict 14024 | -4/Extension | Rescued a captive Derelict 14027 | -4/Extension | Rescued a captive Derelict 14243 | -4/Extension | Spotted B-86 Titan 14257 | -4/Extension | Spotted B-86 Titan 14261 | -4/Extension | Discovered new exit (range 15) 14281 | -4/Extension | Core integrity fell below 50% 14282 | -4/Extension | Identified exit to Research 14282 | -4/Extension | Entered Research 14282 | -3/Research | Evolved 2 slots: Utility x2 14283 | -3/Research | Loaded intel: 23 terminal locations 14309 | -3/Research | Lost 14 parts (5n5u4w) 14576 | -3/Research | Found Prototype Processor 14576 | -3/Research | Identified Spectral Analyzer 14635 | -3/Research | Build established: Hacker-Mutant 14856 | -3/Research | Found Prototype Processor 14856 | -3/Research | Identified Exp. Signal Interpreter 14939 | -3/Research | Identified exit to Research 14961 | -3/Research | Entered another Research area 14961 | -2/Research | Accompanied by 1 ally 14961 | -2/Research | Warlord forces began assault on 0b10 14961 | -2/Research | Evolved 2 slots: Propulsion x2 15071 | -2/Research | Research machine network offline 15114 | -2/Research | Discovered new exit (range 4) 15115 | -2/Research | Identified exit to Testing 15204 | -2/Research | Build established: Hacker-Sprinter 15401 | -2/Research | Discovered new exit (range 3) 15402 | -2/Research | Identified exit to Access 15405 | -2/Research | Entered Access 15405 | -1/Access | Evolved 2 slots: Propulsion x1, Utility x1 15525 | -1/Access | Discovered new exit (range 8) 15527 | -1/Access | Identified exit to Command 15573 | -1/Access | Energy Cycler disabled 15655 | -1/Access | Search patrols dispatched 15774 | -1/Access | Lost 7 parts (1p4n2u) 15793 | -1/Access | Identified exit to Surface 15799 | -1/Access | Core integrity fell below 50% 15833 | -1/Access | Lost 6 parts (1p4n1w) 15862 | *** | Escaped! Last Messages --------------- 15826_ >> Lost connection to Mini Drone. 15827_ Acquired Q-thruster. 15829_ Acquired Mni. Drone Bay. 15829_ >> Reconnected with Mini Drone. 15830_ >> DECODED: Matter Neutralizer location. 15830_ K-01 Serf cleans the Longscan Aggregator. 15840_ Connecting with Terminal... >>Layout(Zone) Retrieving Zone 4F layout... Downloaded map data. >>Trojan(Botnet) Trojan loaded successfully. Testing... Terminal linked with 2 systems. Awaiting botnet instructions. 15840_ Mini Drone retrieved by Mni. Drone Bay. 15843_ >> DECODED: Adv. Weight Redist. System location. 15845_ System corrupted: Matter fused (-10). 15859_ Connecting with Terminal... 15860_ The Access Shell folds into the floor. Map ----- +----------------------------------------------------+ | ?????????????????????????????????????????????????? | | ?????????????????????????????????????????????????? | | ?????????????????????????????????????????????????? | | ?????????????????????????????????????????????????? | | ?????????????????????????????????????????????????? | | ?????????????????????????????????????????????????? | | ?????????????????????????????????????????????????? | | ?????????????????????????????????????????????????? | | ?????????????????????????g???????????????????????? | | ???????????????????????g??g??????????????????????? | | ????????????????????????g????????????????????????? | | ?????????????????????????????????????????????????? | | ?????????????????????????????????????????????????? | | ?????????????????????????????????????????????????? | | ?????????????????????BB????BB????????????????????? | | ?????????????????????BB????BB????????????????????? | | ?????????????????????????????????????????????????? | | ?????????????????????????????????????????????????? | | ?????????????????????????????????????????????????? | | ?????????????????????????????????????????????????? | | ???????????????????#""""""""""#??????????????????? | | ????????????Y??????# #??????????????????? | | ???????????????????# #??????????????????? | | ???????????????????# #??????????????????? | | ???????????????????# "" #??????????????????? | | ???????????????????# "@ #??????????????????? | | ????????g??????????# #??????????????????? | | ???????????????????# #??????????????????? | | ???????????????????# #??????????????????? | | ??????????????????## ##?????????????????? | | ?????????##???????# #?????????????????? | | ?????????? ???????##"" ##?????????????????? | | ?????????? ???????#"" #??????????????????? | | ??????????# ???????#"" #??????????????????? | | ??????????# ???????#T #??????????????????? | | ??????????# ??????#"" #??????????????????? | | ??????????# ??????#"" #??????????????????? | | ??????????# #######"" ###????????????????? | | ??????????# #?????????? | | ??????????# #?????????? | | ????##########+###################### #?????????? | | ????# ! #??????###########??????????????? | | ????# * ######## #??????????????? | | ????# # ] # #??????????????? | | ????# # # #??????????????? | | ##### # # #??????????????? | | " # # ##+#########?????????????? | | "" # "" # # #######?????????????? | | " # "" = # + ?????????????? | | # """""" # # ?????????????? | +----------------------------------------------------+ Best States ------------- Heat Dissipation 65 Energy Generation 55 Energy Capacity 700 Matter Stores 581 Matter Capacity 800 Sight Range 22 Terrain Scan Density 210 Power Amplification 30 Additional Mass Support 9 Armor Coverage 600 Resistance: KI 30 Core Shielding 20 Weapon Shielding 66 Evasion (%) 78 Targeting Accuracy 23 Launcher Accuracy 40 Target Analysis 9 Core Analysis 6 Recoil Reduction 4 Matter Filtering 50 Salvage Targeting 2 Offensive Hacking 30 Defensive Hacking 14 Item Schematics ----------------- Combat Drone Bay | -7/Data Miner | Free Lgt. Regenerative Plating | -7/Data Miner | Free Biomechanical Wings | -7/Data Miner | Free Exp. Utility Shielding | -7/Data Miner | Free Prc. Rocket Launcher | -7/Data Miner | Free Linear Gravjet | -7/Data Miner | Free Imp. Focal Shield | -7/Data Miner | Free Smartbomb Launcher | -7/Data Miner | Free Hvy. Plasma Cannon | -7/Data Miner | Free Field Propulsion Array | -7/Data Miner | Free Lgt. Antimatter Reactor | -7/Data Miner | Free Wave Gun | -6/Zion | Archive Focal Shield | -6/Zion | Archive Adv. Coolant Injector | -6/Zion | Archive Hvy. Gauss Cannon | -6/Zion | Archive Mak. Hover Unit | -6/Zion | Archive Imp. Corruption Screen | -6/Zion | Archive Drone Bay | -6/Zion | Archive Imp. Transmission Jammer | -6/Zion | Archive Imp. Reaction Control System | -6/Zion | Archive Power Amplifier | -6/Zion | Archive Variable Charge Gun | -6/Zion | Archive Phase Cannon | -6/Zion | Archive Adv. Heat Sink | -6/Zion | Archive Remote Force Field | -6/Zion | Archive Robot Schematics ------------------ A-15 Conveyor | -7/Data Miner | Free B-48 Gladiator | -7/Data Miner | Free S-27 Virus | -7/Data Miner | Free L-41 Fighter | -7/Data Miner | Free T-07 Excavator | -6/Zion | Archive R-10 Processor | -6/Zion | Archive W-25 Informer | -6/Zion | Archive Fabricated ------------ Nothing Alien Tech Used ----------------- None Achievements -------------- Decoder Ring Challenges ------------ None Game ------ Seed SmartbombImpulseArray Manual? 0 Play Time 04:45:16 Cumulative 171.0 hours Start 2023.06.18 @ 12:54:57 End 2023.06.24 @ 17:59:12 Sessions 5 Manual Loads 0 Difficulty Rogue Special Mode None Game No. 104 Rogue 85 Adventurer 16 Explorer 3 Win Type 0 Total 6 Types 5/0/1/0/0/0/0/0/0 Lore% 59 Gallery% 61 Achievement% 52 Wizard Run 0 Options --------- ASCII 0 Keyboard 1 Movement Vi Keybinds 0 Fullscreen 0 Font 16/Terminus Map View 76x50 Tactical HUD 1 Map Filters NONE Filters NONE Steam X RUN: 91ca3d8e-808c-4dfd-89d8-a1b2ecaeca1e